bitfinex/quotes_ETHUSD_20241122
["timestamp","ask_amount","ask_price","bid_price","bid_amount"]
[1732262888162,3.48538965,3364.6,3364.0,0.2964]
[1732262890064,3.48538965,3364.3,3364.0,0.2964]
[1732262890277,3.48538965,3364.3,3362.0,3.02972491]
[1732262890278,0.34853897,3364.2,3364.1,0.2964]
[1732262890473,3.83392862,3364.2,3364.1,0.2964]
[1732262890764,3.48538965,3364.2,3364.1,0.2964]
[1732262890924,3.48538965,3364.3,3364.1,0.2964]
[1732262891331,3.48538965,3364.3,3363.6,0.2964]
[1732262891589,0.42354897,3364.2,3363.6,0.2964]
[1732262892791,0.42354897,3364.2,3363.7,0.2964]
[1732262892982,3.48538965,3363.8,3363.7,0.2964]
[1732262893183,0.7508,3363.8,3363.7,0.2964]
[1732262893878,0.7508,3363.8,3363.3,0.2964]
[1732262894186,3.48538965,3363.5,3363.3,0.2964]
[1732262894684,3.18888965,3363.5,3363.3,0.2964]
[1732262894888,3.18888965,3363.5,3363.0,0.2964]
[1732262896190,3.48538965,3363.2,3363.1,0.1464]
[1732262896364,4.31148965,3363.2,3363.1,0.2964]
[1732262896545,4.66002862,3363.2,3363.1,0.2964]
[1732262897150,4.66002862,3363.2,3362.4,0.2964]
[1732262897452,3.48538965,3362.5,3360.9,0.01]
[1732262897648,3.48538965,3362.2,3361.0,0.767]
[1732262897851,3.83392862,3362.2,3361.0,0.767]
[1732262898478,3.48538965,3361.9,3361.0,0.767]
[1732262898680,3.48538965,3361.6,3361.0,0.767]
[1732262900715,3.48538965,3361.9,3361.0,0.767]
[1732262901070,3.48538965,3362.2,3361.2,0.7513]
[1732262901370,3.48538965,3361.9,3361.2,0.7513]
[1732262901718,3.48538965,3362.2,3361.2,0.7513]
[1732262902610,3.48538965,3362.7,3361.6,0.8272]
[1732262902768,3.48538965,3362.7,3361.7,0.2964]
[1732262902972,3.48538965,3362.1,3361.6,0.8272]
[1732262903213,3.48538965,3361.8,3361.6,0.8272]
[1732262903572,3.48538965,3362.1,3361.6,0.8272]
[1732262904875,0.818,3362.8,3361.7,0.2964]
[1732262904876,3.48538965,3362.4,3361.7,0.2964]
[1732262905107,0.34853897,3362.4,3361.7,0.2964]
[1732262905423,3.48538965,3362.1,3361.7,0.2964]
[1732262905577,0.818,3362.8,3361.7,0.2964]
[1732262905578,3.48538965,3362.4,3361.7,0.2964]
[1732262906206,3.48538965,3362.4,3361.2,0.2964]
[1732262906411,3.48538965,3362.4,3361.9,0.2964]
[1732262907272,3.48538965,3362.7,3362.1,0.2964]
[1732262907470,0.34853897,3362.6,3362.1,0.2964]
[1732262907710,3.48538965,3362.7,3362.1,0.2964]
[1732262907904,3.48538965,3363.0,3362.2,0.8023]
[1732262908490,3.48538965,3363.3,3362.5,0.8271]
[1732262908683,3.48538965,3363.6,3362.6,0.2964]
[1732262908885,3.91444862,3363.6,3362.7,1.1235]
[1732262909096,3.48538965,3363.6,3362.7,1.1235]
[1732262909498,3.48538965,3363.3,3362.7,1.1235]
[1732262909801,3.18888965,3363.3,3362.7,0.8271]
[1732262910721,3.48538965,3363.6,3362.7,0.8271]
[1732262911015,3.91444862,3363.6,3362.7,0.8271]
[1732262911378,3.48538965,3363.6,3362.8,0.02973511]
[1732262911713,3.48538965,3363.9,3363.0,0.2964]
[1732262912011,3.48538965,3363.9,3362.9,3.0]
[1732262912012,3.48538965,3363.9,3363.2,0.2964]
[1732262912724,3.48538965,3363.9,3363.4,0.2964]
[1732262913315,0.39494953,3365.3,3362.1,0.01]
[1732262913316,3.48538965,3364.5,3363.6,0.2964]
[1732262914001,3.48538965,3364.5,3363.8,0.2964]
[1732262914235,3.48538965,3364.8,3363.8,0.2964]
[1732262914442,0.42573897,3364.7,3363.8,0.2964]
[1732262914735,3.48538965,3364.5,3363.8,0.2964]
[1732262915893,0.772,3365.0,3363.8,0.2964]
[1732262915894,3.48538965,3364.8,3363.8,0.2964]
[1732262918515,3.48538965,3364.8,3363.7,0.2964]
[1732262918721,3.48538965,3364.8,3363.9,0.2964]
[1732262918932,0.42573897,3364.7,3363.9,0.2964]
[1732262919632,0.42573897,3364.7,3364.0,1.0265]
[1732262919836,3.48538965,3365.1,3364.0,1.0265]
[1732262921639,3.48538965,3364.8,3364.0,1.0265]
[1732262922640,3.48538965,3364.5,3364.0,1.0265]
[1732262922848,3.48538965,3364.5,3364.0,0.61863]
[1732262924440,3.48538965,3364.8,3364.0,0.91503]
[1732262924746,0.05203897,3364.7,3364.0,0.7301]
[1732262926172,3.48538965,3364.5,3364.0,0.5801]
[1732262926678,3.48538965,3364.2,3362.9,0.2964]
[1732262927372,3.48538965,3364.2,3363.0,0.02973141]
[1732262927579,0.35374286,3364.4,3363.0,0.02973141]
[1732262927872,3.48538965,3364.5,3362.7,0.02972972]
[1732262928083,3.83392862,3364.5,3363.5,0.2964]
[1732262929242,3.48538965,3364.8,3363.5,0.2964]
[1732262929566,0.94974402,3365.6,3364.0,0.2964]
[1732262929567,3.48538965,3365.1,3364.0,0.2964]
[1732262929781,3.48538965,3365.1,3364.2,0.2964]
[1732262929937,4.27148965,3365.4,3364.4,0.2964]
[1732262930142,3.95688995,3365.4,3364.6,0.2964]
[1732262930482,3.48538965,3365.7,3364.8,0.2964]
[1732262930816,3.48538965,3365.7,3364.1,0.02972062]
[1732262930817,3.83392862,3365.7,3365.0,0.2964]
[1732262932195,3.48538965,3365.1,3365.0,0.2964]
[1732262932680,3.48538965,3365.1,3364.5,0.1337]
[1732262932878,0.34853897,3365.0,3364.6,0.2964]
[1732262933342,3.48538965,3364.8,3364.6,0.2964]
[1732262933812,3.48538965,3364.8,3364.2,0.2964]
[1732262935167,4.24448965,3364.8,3364.2,0.2964]
[1732262935315,4.24448965,3364.8,3364.3,0.2964]
[1732262935514,0.42444897,3364.7,3364.3,0.2964]
[1732262936213,0.42444897,3364.7,3363.9,0.2964]
[1732262936857,6.48538965,3365.7,3363.9,0.2964]
[1732262936858,3.48538965,3365.1,3364.1,0.4301]
[1732262939656,3.48538965,3365.1,3364.1,0.45982212]
[1732262939949,3.91594862,3365.1,3364.1,0.45982212]
[1732262940144,3.91594862,3365.1,3364.1,0.4301]
[1732262940744,3.48538965,3365.1,3364.1,0.2964]
[1732262940946,3.48538965,3365.5,3364.7,0.2964]
[1732262941671,3.48538965,3365.8,3364.7,0.2964]
[1732262941982,3.48538965,3365.8,3364.9,0.2964]
[1732262943640,3.48538965,3365.8,3363.7,0.01]
[1732262943641,0.67643813,3366.8,3365.2,0.2964]
[1732262943835,1.91036127,3366.4,3365.5,0.2964]
[1732262944144,2.20552357,3366.4,3365.5,0.2964]
[1732262944540,2.20552357,3366.4,3365.7,0.2964]
[1732262945970,3.48538965,3366.1,3365.7,0.2964]
[1732262946340,3.78055195,3366.4,3365.7,0.2964]
[1732262946538,3.48538965,3366.4,3365.7,0.2964]
[1732262949185,3.48538965,3366.8,3365.9,3.0]
[1732262949498,3.48538965,3367.1,3366.2,0.2964]
[1732262949653,3.48538965,3367.1,3366.4,0.2964]
[1732262949856,0.42970897,3367.0,3366.4,0.2964]
[1732262950352,3.48538965,3367.1,3366.4,0.2964]
[1732262950672,4.4835819,3367.5,3366.4,0.2964]
[1732262950845,4.4835819,3367.5,3366.6,0.1337]
[1732262951045,5.01311009,3367.5,3366.7,0.2964]
[1732262951470,0.52952819,3367.5,3366.9,0.2964]
[1732262951669,5.3024819,3367.9,3366.9,0.2964]
[1732262952091,4.4835819,3367.9,3366.9,0.2964]
[1732262952301,4.4835819,3367.9,3367.1,0.2964]
[1732262952446,4.4835819,3367.9,3367.2,0.1337]
[1732262952447,5.01361009,3367.9,3367.2,0.1337]
[1732262952652,5.01361009,3367.9,3367.3,0.2964]
[1732262953856,0.53002819,3367.9,3367.3,0.2964]
[1732262954089,0.8322,3368.5,3367.4,0.32609645]
[1732262954385,0.8322,3368.9,3367.6,0.2964]
[1732262954588,0.8322,3368.9,3366.4,0.04969337]
[1732262954589,0.8322,3368.9,3367.8,0.2964]
[1732262954798,4.4835819,3369.1,3367.8,0.2964]
[1732262954799,4.4835819,3369.1,3368.0,0.2964]
[1732262955088,0.44835819,3369.0,3368.0,0.2964]
[1732262955491,4.4835819,3368.7,3368.0,0.2964]
[1732262956010,4.4835819,3369.1,3368.0,0.2964]
[1732262958467,4.4835819,3369.1,3368.1,0.4301]
[1732262958672,0.53157819,3369.0,3368.1,0.4301]
[1732262964995,4.4835819,3368.7,3368.1,0.4301]
[1732262965302,4.4835819,3368.7,3368.2,0.2964]
[1732262965824,5.2990819,3368.3,3368.2,0.2964]
[1732262966038,5.82899009,3368.3,3368.2,0.2964]
[1732262967396,5.82899009,3368.3,3367.5,0.2964]
[1732262969028,4.4835819,3367.7,3367.5,0.2964]
[1732262970045,4.4835819,3368.1,3367.5,0.2964]
[1732262972598,3.47993812,3368.4,3367.6,0.2964]
[1732262972819,3.47993812,3368.1,3367.8,0.2964]
[1732262974212,3.47993812,3368.4,3367.8,0.2964]
[1732262974437,3.47993812,3368.4,3367.9,0.2964]
[1732262974641,3.47993812,3368.4,3367.5,0.02969059]
[1732262974642,3.47993812,3368.7,3368.1,0.2964]
[1732262974943,0.7703,3369.3,3368.1,0.2964]
[1732262974944,3.47993812,3369.0,3368.1,0.2964]
[1732262975146,3.47993812,3369.0,3368.3,0.2964]
[1732262975725,3.47993812,3369.0,3368.3,0.63941]
[1732262975927,3.47993812,3369.0,3368.5,0.2964]
[1732262976868,3.47993812,3369.3,3368.5,0.2964]
[1732262977171,3.47993812,3369.3,3367.7,0.02968483]
[1732262977172,3.47993812,3369.3,3368.8,0.2964]
[1732262979229,3.47993812,3369.6,3368.8,0.2964]
[1732262979470,0.34799381,3369.5,3368.8,0.2964]
[1732262979646,3.47993812,3369.9,3369.0,0.2964]
[1732262979837,3.47993812,3369.6,3369.2,0.2964]
[1732262980028,4.72652,3371.0,3369.2,0.2964]
[1732262980029,0.7858,3369.7,3369.2,0.2964]
[1732262980964,0.7858,3369.7,3368.9,0.2964]
[1732262981166,3.47993812,3369.2,3368.9,0.2964]
[1732262982168,3.47993812,3369.8,3368.9,0.2964]
[1732262982371,3.47993812,3370.1,3369.3,0.2964]
[1732262982744,3.91105193,3370.1,3369.3,0.2964]
[1732262984692,0.43111381,3370.1,3369.3,0.2964]
[1732262985742,0.81964981,3370.8,3369.5,0.4301]
[1732262985743,1.61214981,3370.8,3369.5,0.4301]
[1732262985932,6.22640059,3371.0,3369.9,0.1337]
[1732262986132,6.93941121,3371.0,3370.0,0.2964]
[1732262987777,6.22640059,3371.0,3370.0,0.2964]
[1732262987971,1.75,3371.0,3370.1,0.4301]
[1732262988867,6.22640059,3371.0,3370.1,0.4301]
[1732262989169,4.47640059,3370.6,3370.1,0.4301]
[1732262989367,4.47640059,3370.6,3369.7,0.4301]
[1732262989934,4.47640059,3370.6,3369.7,0.2301]
[1732262991047,0.55,3370.8,3369.7,0.2301]
[1732262991271,6.22640059,3371.0,3369.7,0.2301]
[1732262991487,6.22640059,3371.0,3369.7,3.2301]
[1732262991635,6.22640059,3371.0,3369.7,0.2301]
[1732262991833,6.22640059,3371.0,3370.1,0.1638]
[1732262992852,6.22640059,3371.0,3370.2,0.1638]
[1732262993978,6.22640059,3371.0,3370.3,0.1638]
[1732262994485,6.94592121,3371.0,3370.3,0.1638]
[1732262994784,1.75,3371.0,3370.4,3.0]
[1732262994939,1.75,3371.0,3370.4,3.1638]
[1732262995141,1.75,3371.0,3370.4,0.1638]
[1732262995975,1.75,3371.0,3370.5,0.1638]
[1732262996381,1.75,3371.0,3370.9,3.1638]
[1732262996671,0.5163148,3371.0,3370.9,3.1638]
[1732262996873,0.5163148,3371.0,3370.9,0.1638]
[1732262997179,0.5163148,3371.0,3370.9,3.1638]
[1732262997339,0.5163148,3371.0,3370.9,0.1638]
[1732262998674,0.5163148,3371.0,3370.9,3.1638]
[1732262998848,0.5163148,3371.0,3370.9,3.48018]
[1732262999049,0.5163148,3371.0,3370.9,0.48018]
[1732262999255,0.5163148,3371.0,3370.9,3.1638]
[1732262999770,0.2198148,3371.0,3369.9,0.56]
[1732262999969,0.2198148,3371.0,3370.0,0.55699595]
[1732263000382,0.2198148,3371.0,3370.1,0.2964]
[1732263000591,0.2198148,3371.0,3370.2,0.02966586]
[1732263000752,0.2198148,3371.0,3370.2,0.2964]
[1732263001063,0.2198148,3371.0,3370.2,0.32606584]
[1732263001276,0.2198148,3371.0,3370.2,0.2964]
[1732263001776,0.2198148,3371.0,3370.3,0.32606585]
[1732263002753,0.2198148,3371.0,3370.4,0.2964]
[1732263002939,0.2198148,3371.0,3370.5,0.0296622]
[1732263003147,0.2198148,3371.0,3370.9,2.9998]
[1732263003378,0.2198148,3371.0,3370.9,0.59638]
[1732263003578,0.2198148,3371.0,3370.9,0.2964]
[1732263005060,4.69621539,3371.0,3370.9,0.2964]
[1732263005372,5.45961539,3371.0,3370.9,0.2964]
[1732263005572,5.45961539,3371.0,3370.9,0.18143064]
[1732263005774,0.55,3370.9,3369.4,3.01888545]
[1732263005973,4.47640059,3370.3,3369.4,2.72248545]
[1732263006196,0.79306249,3370.2,3369.4,2.72248545]
[1732263006369,0.7634,3370.2,3369.5,0.27224855]
[1732263006898,0.7634,3370.2,3369.6,0.2964]
[1732263007302,4.22738606,3370.6,3369.6,0.2964]
[1732263007498,3.47598606,3370.9,3369.8,0.2964]
[1732263008698,5.44566451,3371.0,3369.8,0.2964]
[1732263008916,0.54456645,3370.9,3369.8,0.66191887]
[1732263009208,5.44566451,3371.0,3369.8,0.66191887]
[1732263009384,5.44566451,3371.0,3369.9,0.02967056]
[1732263009580,5.44566451,3371.0,3369.8,0.66191887]
[1732263009899,0.8185,3370.5,3369.9,0.2964]
[1732263010099,0.79816249,3370.5,3369.9,0.2964]
[1732263010402,1.32542371,3370.5,3369.9,0.2964]
[1732263010870,1.32542371,3370.5,3370.0,0.2964]
[1732263011071,0.79816249,3370.5,3370.0,0.2964]
[1732263012045,0.79816249,3370.5,3370.1,0.2964]
[1732263012333,4.47444971,3370.2,3370.1,0.2964]
[1732263012493,4.47444971,3370.2,3369.4,2.72248545]
[1732263012796,4.47444971,3369.7,3369.4,2.42663545]
[1732263013198,0.7723,3369.6,3369.4,2.42663545]
[1732263013386,0.7723,3369.6,3369.5,0.2964]
[1732263014339,1.79735519,3369.6,3369.4,2.42663545]
[1732263014490,1.79735519,3369.6,3369.5,0.2964]
[1732263014685,1.02505519,3369.6,3369.4,2.42663545]
[1732263014911,1.63541249,3369.5,3369.4,2.27663545]
[1732263015113,2.18541249,3369.5,3369.4,2.27663545]
[1732263015390,5.18541249,3369.5,3369.4,2.27663545]
[1732263016096,8.15320249,3369.5,3369.4,2.27663545]
[1732263016927,5.18541249,3369.5,3369.4,2.27663545]
[1732263017303,1.3221,3369.4,3368.0,0.0203]
[1732263017505,4.47444971,3368.8,3368.0,0.0203]
[1732263017708,0.7721,3369.4,3368.1,0.0203]
[1732263017903,4.47444971,3369.6,3368.5,0.3167]
[1732263018228,0.7655,3369.8,3368.7,0.2964]
[1732263018427,4.47444971,3369.6,3368.7,0.2964]
[1732263019134,4.47444971,3369.2,3368.8,0.2964]
[1732263019290,0.809,3369.1,3368.8,0.2964]
[1732263019491,0.55,3369.0,3367.8,0.0203]
[1732263019731,4.47444971,3368.7,3367.8,0.0203]
[1732263019940,0.809,3368.6,3367.6,0.0203]
[1732263020236,4.47444971,3368.5,3367.6,0.0203]
[1732263020405,4.47444971,3368.5,3366.5,0.0203]
[1732263020602,4.47444971,3368.5,3366.6,0.02969481]
[1732263020808,5.00279468,3368.5,3366.7,0.0203]
[1732263021004,5.00279468,3368.5,3366.9,0.0203]
[1732263021623,4.47444971,3367.7,3366.6,0.0203]
[1732263021929,4.47444971,3367.7,3366.6,0.3167]
[1732263022822,4.47444971,3367.7,3366.7,0.2964]
[1732263023728,4.47444971,3367.3,3366.8,0.2964]
[1732263023929,5.25894971,3367.3,3366.8,0.2964]
[1732263024505,4.47444971,3366.9,3366.8,0.2964]
[1732263026097,5.02444971,3366.9,3366.8,0.2964]
[1732263026294,6.31599468,3366.9,3366.8,0.2964]
[1732263026547,0.55,3366.8,3366.2,0.2964]
[1732263026698,0.55,3366.8,3365.7,0.0203]
[1732263026699,4.47444971,3366.5,3365.7,0.0203]
[1732263027538,5.26354971,3366.9,3365.7,0.0203]
[1732263028027,5.26354971,3366.9,3365.7,0.3167]
[1732263028199,4.47444971,3366.9,3365.7,0.3167]
[1732263028631,4.47444971,3366.9,3365.8,0.62807]
[1732263029136,4.47444971,3366.9,3365.8,0.2964]
[1732263029833,4.47444971,3366.9,3365.7,0.0203]
[1732263030224,0.8126,3367.1,3366.0,0.0203]
[1732263030529,4.47444971,3367.3,3366.0,0.0203]
[1732263030732,0.44744497,3367.2,3366.0,0.0203]
[1732263030897,4.47444971,3366.9,3366.0,0.0203]
[1732263031098,0.8215,3366.8,3365.9,3.0]
[1732263031334,0.8215,3366.8,3365.6,0.0203]
[1732263031502,1.35109497,3366.8,3365.6,0.0203]
[1732263032738,0.8124,3367.2,3365.6,0.0203]
[1732263033033,0.8124,3367.2,3365.8,3.0]
[1732263033200,0.8124,3367.2,3365.9,0.0203]
[1732263033501,0.8124,3367.2,3365.9,0.3167]
[1732263033699,4.47444971,3367.7,3366.0,0.0203]
[1732263033700,0.8108,3367.6,3366.0,0.0203]
[1732263034310,0.8108,3367.6,3366.0,0.3167]
[1732263034496,0.8108,3367.6,3366.3,3.0]
[1732263034706,4.47444971,3367.7,3366.5,0.0203]
[1732263034997,0.7557,3367.9,3366.4,0.3]
[1732263034998,0.7557,3367.9,3366.6,3.0]
[1732263035197,4.47444971,3368.1,3366.6,3.0]
[1732263035434,4.47444971,3368.1,3366.8,0.0203]
[1732263035815,4.47444971,3368.1,3366.8,0.32233]
[1732263036129,4.47444971,3368.1,3366.8,0.0203]
[1732263038623,4.47444971,3367.7,3366.8,0.0203]
[1732263038829,0.7688,3367.6,3366.8,0.0203]
[1732263039023,4.47444971,3367.3,3366.0,0.0203]
[1732263040538,4.47444971,3367.3,3366.1,3.0]
[1732263040707,4.47444971,3367.3,3366.2,0.2964]
[1732263040907,5.23644971,3366.9,3366.2,0.2964]
[1732263041402,4.47444971,3366.9,3366.2,0.2964]
[1732263041607,4.47444971,3366.9,3366.3,0.2964]
[1732263042745,4.47444971,3366.9,3366.4,0.2964]
[1732263043218,4.99809468,3366.9,3366.4,0.2964]
[1732263043936,1.07432497,3367.5,3366.6,0.0203]
[1732263044117,0.55,3367.5,3366.6,0.0203]
[1732263044810,0.55,3367.5,3366.6,0.3167]
[1732263045011,4.47444971,3367.3,3366.6,0.3167]
[1732263045936,4.47444971,3367.3,3366.6,0.0203]
[1732263046241,4.47444971,3367.7,3366.6,0.0203]
[1732263046440,4.47444971,3368.1,3366.6,0.0203]
[1732263046611,0.52280497,3368.0,3366.6,0.02969976]
[1732263046807,0.52280497,3368.0,3366.7,0.0203]
[1732263047235,0.52280497,3368.0,3366.7,0.2964]
[1732263047447,4.47444971,3368.5,3366.9,0.0203]
[1732263047605,4.47444971,3368.5,3367.2,0.0203]
[1732263047811,0.52280497,3368.4,3367.2,0.0203]
[1732263048010,4.47444971,3368.1,3367.2,0.0203]
[1732263048642,4.47444971,3368.1,3367.2,0.3167]
[1732263049761,4.47444971,3368.1,3367.3,0.2964]
[1732263050069,0.7536,3368.6,3367.3,0.2964]
[1732263050070,4.47444971,3368.5,3367.3,0.2964]
[1732263050361,0.52280497,3368.4,3367.3,0.2964]
[1732263050775,0.55,3368.8,3367.4,0.3167]
[1732263051065,0.55,3368.8,3367.5,0.0203]
[1732263051233,0.58139497,3368.7,3367.5,0.0203]
[1732263052068,0.58139497,3368.7,3367.5,0.3167]
[1732263052641,0.58139497,3368.7,3367.6,0.0203]
[1732263052956,4.47444971,3368.9,3367.7,0.0203]
[1732263053137,5.26394971,3369.3,3367.8,0.0203]
[1732263053852,5.26394971,3369.3,3368.1,0.0203]
[1732263054057,4.47444971,3369.3,3368.3,0.2964]
[1732263055053,4.47444971,3369.3,3368.1,0.0203]
[1732263055579,4.47444971,3368.5,3368.1,0.0203]
[1732263055780,5.23764971,3368.9,3368.1,0.0203]
[1732263055933,4.47444971,3368.9,3368.1,0.0203]
[1732263056446,4.47444971,3368.9,3368.0,0.2964]
[1732263056447,4.47444971,3368.5,3368.0,0.2964]
[1732263056666,4.92189468,3368.5,3368.0,0.2964]
[1732263057167,4.47444971,3368.5,3368.1,0.2964]
[1732263057532,5.02444971,3368.9,3368.1,0.2964]
[1732263057732,0.57876497,3368.8,3368.1,0.2964]
[1732263057937,4.47444971,3368.5,3368.2,0.2964]
[1732263058375,4.47444971,3368.5,3366.0,0.01]
[1732263058376,1.3113,3368.4,3367.4,0.0203]
[1732263058574,4.47444971,3367.9,3367.4,0.0203]
[1732263058736,4.47444971,3367.9,3366.5,0.2964]
[1732263058737,4.47444971,3367.9,3367.1,0.0203]
[1732263061551,4.47444971,3368.3,3367.1,0.0203]
[1732263061756,0.57857497,3368.2,3367.1,0.0203]
[1732263062465,4.47444971,3367.9,3367.1,0.0203]
[1732263062977,0.8273,3367.8,3366.5,0.0203]
[1732263063180,4.47444971,3367.5,3366.5,0.0203]
[1732263063481,5.00462468,3367.5,3366.5,0.0203]
[1732263064468,4.47444971,3367.1,3366.5,0.0203]
[1732263064667,5.00462468,3367.5,3366.5,0.0203]
[1732263064878,4.47444971,3367.5,3366.5,0.0203]
[1732263066303,4.47444971,3367.5,3365.6,0.01]
[1732263066304,4.47444971,3368.0,3366.8,0.0203]
[1732263066600,4.47444971,3368.0,3367.0,0.3167]
[1732263067577,4.47444971,3368.0,3367.1,0.2964]
[1732263067786,4.47444971,3367.6,3367.1,0.2964]
[1732263068573,4.47444971,3367.6,3367.2,0.2964]
[1732263068802,4.92189468,3367.6,3367.2,0.2964]
[1732263069706,4.92189468,3367.6,3367.3,0.2964]
[1732263070402,4.47444971,3368.0,3367.3,0.2964]
[1732263070614,4.47444971,3368.0,3367.4,0.3167]
[1732263070900,4.47444971,3368.8,3367.5,0.0203]
[1732263071403,4.47444971,3368.4,3367.5,0.0203]
[1732263071600,4.47444971,3368.4,3367.5,0.3167]
[1732263071763,4.47444971,3368.0,3367.5,0.3167]
[1732263072203,4.47444971,3368.0,3367.5,0.2964]
[1732263072572,4.47444971,3368.0,3367.6,0.2964]
[1732263072794,0.53036497,3367.9,3367.6,0.2964]
[1732263073268,0.55,3367.8,3367.6,0.2964]
[1732263073709,0.55,3367.8,3366.9,0.0203]
[1732263073912,4.47444971,3367.4,3366.9,0.0203]
[1732263076301,4.47444971,3367.4,3366.4,0.0203]
[1732263076614,4.47444971,3367.4,3366.5,0.2964]
[1732263077375,4.47444971,3367.4,3366.6,0.2964]
[1732263077711,4.47444971,3367.0,3366.6,0.2964]
[1732263078106,4.47444971,3367.4,3366.6,0.2964]
[1732263078294,5.05985468,3367.4,3366.6,0.2964]
[1732263078613,5.05985468,3367.4,3366.7,0.2964]
[1732263078985,4.47444971,3367.0,3366.7,0.2964]
[1732263079524,4.47444971,3367.0,3366.4,0.0203]
[1732263082186,0.7924,3367.1,3366.4,0.0203]
[1732263082381,0.55,3367.3,3366.4,0.0203]
[1732263082820,0.58168497,3367.2,3366.4,0.0203]
[1732263083931,0.01,3368.5,3366.4,0.0203]
[1732263083932,0.7521,3367.7,3366.4,0.0203]
[1732263084112,4.47444971,3367.8,3366.5,0.3167]
[1732263084315,4.47444971,3367.8,3366.6,0.0203]
[1732263084628,4.99710468,3367.8,3366.9,0.0203]
[1732263084824,0.7521,3368.1,3366.9,0.0203]
[1732263085010,4.47444971,3368.2,3366.9,0.0203]
[1732263085327,4.47444971,3368.2,3366.9,0.04999945]
[1732263085490,0.7923,3368.4,3366.9,0.04999945]
[1732263085491,4.47444971,3368.6,3367.3,0.0203]
[1732263085831,5.00112468,3368.6,3367.6,0.0203]
[1732263087126,5.00112468,3368.6,3367.6,0.3167]
[1732263087425,4.47444971,3368.6,3367.6,0.3167]
[1732263088423,4.47444971,3368.2,3367.6,0.3167]
[1732263089114,4.47444971,3368.2,3367.7,0.2964]
[1732263089621,4.17794971,3368.2,3367.7,0.2964]
[1732263090140,4.17794971,3368.2,3367.6,0.0203]
[1732263091110,4.47444971,3367.8,3367.1,0.0203]
[1732263091447,4.47444971,3367.8,3367.2,0.2964]
[1732263092208,4.47444971,3367.8,3367.3,0.2964]
[1732263093451,4.47444971,3367.8,3367.1,0.0203]
[1732263096426,0.7638,3367.7,3367.1,0.0203]
[1732263098716,3.48241217,3367.3,3366.8,0.0203]
[1732263099362,3.48241217,3367.3,3367.0,0.2964]
[1732263100351,3.48241217,3367.3,3366.8,0.0203]
[1732263100715,3.48241217,3367.7,3366.8,0.0203]
[1732263100917,3.48241217,3367.7,3367.0,0.0203]
[1732263101117,3.48241217,3368.1,3367.0,0.0203]
[1732263103664,3.48241217,3368.1,3366.9,0.2964]
[1732263103665,3.48241217,3368.1,3367.3,0.0203]
[1732263105634,3.48241217,3368.1,3367.3,0.3167]
[1732263106572,0.7969,3369.2,3367.7,0.0203]
[1732263106741,4.27931217,3369.2,3368.0,0.0203]
[1732263106948,3.48241217,3368.9,3368.0,0.0203]
[1732263108465,4.26231217,3369.6,3368.0,0.0203]
[1732263108466,3.48241217,3369.2,3368.0,0.0203]
[1732263108676,0.34824122,3369.1,3368.0,0.0203]
[1732263110565,4.47919022,3368.8,3368.0,0.0203]
[1732263112146,0.7725,3368.9,3368.0,0.0203]
[1732263112147,4.47919022,3368.4,3368.0,0.0203]
[1732263112350,0.7725,3368.9,3368.0,0.0203]
[1732263112351,4.47919022,3368.8,3368.0,0.0203]
[1732263112548,5.00435924,3368.8,3368.0,0.0203]
[1732263113682,4.47919022,3368.8,3368.0,0.0203]
[1732263113985,0.7905,3369.2,3368.0,0.0203]
[1732263113986,0.55,3369.1,3368.0,0.0203]
[1732263114558,4.47919022,3369.2,3368.0,0.0203]
[1732263114788,4.39816535,3369.2,3368.0,0.0203]
[1732263115800,5.21774189,3369.2,3368.1,0.2964]
[1732263116752,5.21774189,3369.2,3368.0,0.0203]
[1732263116956,4.47919022,3368.8,3368.0,0.0203]
[1732263119197,0.55,3369.1,3368.0,0.0203]
[1732263119373,0.58487668,3369.0,3368.0,0.0203]
[1732263122512,5.29876676,3369.2,3368.0,0.0203]
[1732263125326,4.47919022,3368.8,3368.0,0.0203]
[1732263125533,4.47919022,3368.4,3368.0,0.0203]
[1732263126100,4.47919022,3368.8,3368.0,0.0203]
[1732263126301,4.47919022,3368.8,3368.0,0.3167]
[1732263127549,4.47919022,3368.8,3368.1,0.2964]
[1732263128213,0.8018,3369.1,3368.1,0.2964]
[1732263128525,1.32989902,3369.1,3368.0,0.0203]
[1732263128703,4.47919022,3368.8,3368.0,0.0203]
[1732263130748,3.47957575,3368.8,3368.0,0.0203]
[1732263131242,3.47957575,3368.4,3368.0,0.0203]
[1732263132341,3.47957575,3368.8,3368.0,0.0203]
[1732263132508,3.96271333,3368.8,3368.0,0.0203]
[1732263135439,3.47957575,3368.8,3368.0,0.0203]
[1732263135645,0.7722,3369.4,3368.2,0.0203]
[1732263135941,0.7935,3369.9,3368.2,0.0203]
[1732263136143,0.48340655,3370.8,3368.7,0.0203]
[1732263136144,0.27632821,3369.5,3368.7,0.0203]
[1732263136305,3.47957575,3370.0,3369.0,0.0203]
[1732263137316,3.47957575,3369.7,3369.0,0.0203]
[1732263138758,3.47957575,3370.0,3369.0,0.0203]
[1732263138917,0.42730758,3369.9,3369.0,0.0203]
[1732263139752,0.7803,3370.6,3369.0,0.0203]
[1732263139962,3.47957575,3370.1,3369.2,0.0203]
[1732263140128,0.34795758,3370.0,3369.2,0.0203]
[1732263140570,3.47957575,3369.8,3369.2,0.0203]
[1732263141136,3.47957575,3369.5,3369.2,0.0203]
[1732263141969,3.47957575,3369.5,3367.9,0.0203]
[1732263142269,4.26777575,3369.5,3367.9,0.0203]
[1732263142434,3.47957575,3368.9,3367.9,0.0203]
[1732263142638,3.47957575,3369.2,3367.9,0.0203]
[1732263142939,3.47957575,3369.2,3367.9,0.04998835]
[1732263143143,3.90635333,3369.2,3367.9,0.0203]
[1732263144572,3.47957575,3369.2,3367.9,0.0203]
[1732263144731,3.47957575,3369.6,3367.9,0.0203]
[1732263144932,3.47957575,3369.6,3368.2,0.2964]
[1732263145244,3.47957575,3369.5,3368.3,0.0203]
[1732263145461,3.47957575,3369.9,3368.5,0.0203]
[1732263145660,3.47957575,3369.9,3368.7,0.2964]
[1732263145940,3.47957575,3369.9,3368.8,0.0203]
[1732263146490,3.47957575,3369.6,3368.8,0.0203]